[Event "125-Jahre Werder Bremen 2024"]
[Site "Bremen"]
[Date "2024.03.07"]
[Round "6.12"]
[White "Wiegmann, Sascha"]
[Black "Radeva, Viktoria"]
[Result "0-1"]
[ECO "A08"]
[WhiteElo "2297"]
[BlackElo "2325"]
[Annotator "TA"]
[PlyCount "72"]
[EventDate "2024.02.26"]
[EventType "swiss"]
[EventCountry "GER"]
[SourceTitle "playchess.com"]
[Source "ChessBase"]
[SourceQuality "1"]
[TimeControl "40/6000+30:1800+30"]

{[%evp 16,72,2,0,-3,-67,-58,-63,-61,-54,-59,-53,-62,-62,-48,-60,0,-90,-77,-106,-116,-135,-106,-119,-75,-83,-86,-81,-77,-72,-80,-79,-71,-92,-79,-99,-81,-119,-82,-87,0,-100,-91,-97,-99,-76,0,-293,-285,-672,-669,-660,-631,-1989,-1835,-1613,-1510,-1171,-1084]} 1. e4 {[%emt 0:00:03]} c5 {[%emt 0:00:13]} 2. Nf3 {[%emt 0:00:01]} e6 {[%emt 0:00:11]} 3. d3 {[%emt 0:00:02]} Nc6 {[%emt 0:00:09]} 4. g3 {[%emt 0:00:01]} Nf6 {[%emt 0:00:20]} 5. Bg2 {[%emt 0:00:02]} d5 {[%emt 0:00:08]} 6. Nbd2 {[%emt 0:00:02]} g6 {[%emt 0:00:15]} 7. O-O {[%emt 0:01:30]} Bg7 {[%emt 0:00:15]} 8. exd5 {[%emt 0:05:29]} Nxd5 {[%emt 0:00:07]} 9. Ne4 {[%emt 0:01:05]} b6 {[%emt 0:00:29]} 10. c4 {[%emt 0:05:20]} (10. Nfd2 $11) 10... Nde7 $1 $15 {[%emt 0:00:47]} 11. Bg5 {[%emt 0:01:32]} O-O {[%emt 0:00:50][%cal Of7f6] Black is slightly better.} 12. Bf6 {[%emt 0:16:48]} Bxf6 {[%emt 0:00:32]} 13. Nxf6+ {[%emt 0:00:03]} Kg7 {[%emt 0:00:06]} 14. Ng4 {[%emt 0:07:30]} f6 {[%emt 0:12:30]} 15. Qd2 {[%emt 0:02:46]} Qc7 {[%emt 0:15:26]} ({Black should try} 15... Bb7 $15) 16. h4 {[%emt 0:25:49]} (16. Qh6+ $11 Kg8 17. Qh4) 16... Nf5 $17 {[%emt 0:06:02]} 17. h5 {[%emt 0:04:15]} Bb7 {[%emt 0:03:14]} 18. h6+ {[%emt 0:01:02]} Kg8 {[%emt 0:03:28]} 19. Rae1 {[%emt 0:02:30]} Ncd4 {[%emt 0:08:31]} 20. Nxd4 {[%emt 0:07:07]} Nxd4 {[%emt 0:00:52]} 21. f4 {[%emt 0:00:50]} Bxg2 {[%emt 0:04:09]} 22. Qxg2 {[%emt 0:00:46][%cal Og4f6]} Rad8 {[%emt 0:00:47]} 23. a3 {[%emt 0:03:52]} Rd6 {[%emt 0:08:41]} 24. b4 {[%emt 0:03:30]} Nf5 {[%emt 0:04:02]} 25. Rf3 {[%emt 0:04:52]} Qd7 {[%emt 0:02:33]} 26. Qd2 {[%emt 0:04:49]} Qc6 {[%emt 0:05:42]} 27. Qg2 {[%emt 0:05:17]} Qd7 {[%emt 0:14:13]} 28. Qd2 $1 {[%emt 0:00:32]} Nd4 {[%emt 0:00:40]} 29. Rfe3 {[%emt 0:01:00]} Qb7 $36 {[%emt 0:03:54][%mdl 2048] [#] Strongly threatening ...Nf3+. Black is on the roll.} 30. Qb2 {[%emt 0:04:06]} Nf3+ {[%emt 0:08:04]} (30... Qc6 $17) 31. Kf2 $2 {[%emt 0:00:49][%mdl 8192]} (31. Rxf3 $1 $11 {and White has nothing to worry.} Qxf3 32. Nxf6+ Rxf6 33. Qxf6 Qxg3+ (33... Qxd3 34. Qg7#) 34. Kf1 Qf3+ (34... Rxd3 35. Qg7#) (34... Qxd3+ 35. Kg2 $11) 35. Kg1 Qg3+ (35... Qxd3 36. Qg7#) 36. Kf1 Qxd3+ (36... Rxd3 37. Qg7#) 37. Kg2 Qd2+ 38. Kf3 Rd3+ (38... Qxe1 39. Qg7#) 39. Ke4 Rd4+ (39... Qxe1+ 40. Kxd3 Qd1+ 41. Ke3 $11) 40. Kf3 Rxf4+ (40... Qxe1 41. Qg7#) 41. Qxf4 Qxe1 42. Qb8+ Kf7 43. Qc7+ Ke8 44. Qc8+ Ke7 45. Qc7+ Kf6 46. Qf4+ Ke7 47. Qc7+ Ke8 48. Qc8+ Kf7 49. Qc7+ Ke8) 31... Nxe1 $19 {[%emt 0:01:24]} 32. Nxf6+ $2 {[%emt 0:01:36] [#]} (32. Kxe1 Qh1+ 33. Kd2) 32... Rxf6 $1 {[%emt 0:02:13] Black is clearly winning.} 33. Qxf6 {[%emt 0:00:06]} Nxd3+ {[%emt 0:01:05]} 34. Rxd3 {[%emt 0:00:04]} Rxd3 {[%emt 0:00:04]} 35. Qxe6+ {[%emt 0:00:08]} Kf8 {[%emt 0:00:57] ( -> ...Qf3+)} 36. Qf6+ {[%emt 0:00:32]} Qf7 {[%emt 0:00:30] Weighted Error Value: White=0.66/Black=0.18 (very precise) .  Loses game:     	White=1     	---        Mistake:       	White=3     	Black=2      Inaccurate:     	White=2     	Black=2      OK:         	White=6     	Black=4      Best:        	---       	Black=2      Strong:       	White=1     	Black=1      Brilliant:      	---       	Black=1} 0-1

[Event "125-Jahre Werder Bremen 2024"]
[Site "Bremen"]
[Date "2024.03.08"]
[Round "7.1"]
[White "Aditya Mittal"]
[Black "Pajeken, Jakob Leon"]
[Result "1-0"]
[ECO "B90"]
[WhiteElo "2594"]
[BlackElo "2424"]
[Annotator "TA"]
[PlyCount "67"]
[EventDate "2024.02.26"]
[EventType "swiss"]
[EventCountry "GER"]
[SourceTitle "playchess.com"]
[Source "ChessBase"]
[SourceQuality "1"]
[TimeControl "40/6000+30:1800+30"]

{[%evp 12,67,8,7,17,17,19,4,24,12,22,8,18,6,6,8,51,25,31,35,164,159,154,123,185,164,172,157,217,211,264,277,282,254,291,301,305,300,295,296,287,304,262,260,273,259,422,387,394,372,404,410,639,629,833,818,802,776]} 1. e4 {[%emt 0:00:01]} c5 {[%emt 0:00:21]} 2. Nf3 {[%emt 0:00:02][%cal Bg1f3,Bf3d4,Bd4b3][%mdl 32]} d6 {[%emt 0:00:07]} 3. d4 {[%emt 0:00:01]} cxd4 {[%emt 0:00:05]} 4. Nxd4 {[%emt 0:00:02]} Nf6 {[%emt 0:00:05]} 5. Nc3 {[%emt 0:00:02]} a6 {[%emt 0:00:04]} 6. h3 {[%emt 0:00:02]} e5 {[%emt 0:00:07]} 7. Nb3 {[%emt 0:00:01]} Be6 {[%emt 0:00:10]} 8. f4 {[%emt 0:00:02][%cal Bf2f4,Bf4f5][%mdl 32]} b5 {[%emt 0:00:26]} 9. Qf3 {[%emt 0:00:16]} Nc6 {[%emt 0:01:10] The position is equal.} 10. g4 {[%emt 0:00:01]} Be7 {[%emt 0:16:16]} 11. f5 {[%emt 0:13:15]} Bxb3 {[%emt 0:01:00]} 12. axb3 {[%emt 0:01:01]} Nd4 {[%emt 0:08:40]} 13. Qg2 {[%emt 0:00:33] White wants to play g5.} b4 {[%emt 0:19:05] [#] ...Qc8 is the strong threat.} 14. g5 $1 {[%emt 0:11:43]} bxc3 {[%emt 0:02:38]} 15. bxc3 {[%emt 0:00:40]} (15. gxf6 cxb2 16. Bxb2 Bxf6 $15 (16... gxf6 17. Bxa6 d5 18. Bxd4 $16)) 15... Nc6 {[%emt 0:13:49]} ({Black should try} 15... Nxe4 $14 16. Qxe4 d5) 16. gxf6 $18 {[%emt 0:00:30]} Bxf6 {[%emt 0:00:14] Black is weak on the light squares} 17. Bc4 {[%emt 0:03:10] White is much more active.} ({Don't do} 17. Bxa6 $6 O-O 18. Ra4 Ne7 $14) (17. Rxa6 Rxa6 18. Bxa6 Qa5 $11) 17... Qb6 {[%emt 0:02:58]} (17... Qc7 $16) 18. Ke2 {[%emt 0:04:29]} Ne7 {[%emt 0:04:05]} 19. Rd1 {[%emt 0:12:59]} O-O {[%emt 0:02:22] [#]} (19... a5 $16 20. Rg1 Qb7) 20. Bg5 $1 {[%emt 0:03:05]} Kh8 {[%emt 0:03:20]} 21. Bxf6 {[%emt 0:06:25]} gxf6 {[%emt 0:00:06]} 22. Qf2 {[%emt 0:00:05]} Qc6 {[%emt 0:01:37]} 23. Qh4 {[%emt 0:02:36]} d5 {[%emt 0:00:28]} 24. Bxd5 {[%emt 0:09:53]} Nxd5 {[%emt 0:00:14]} 25. exd5 {[%emt 0:02:38]} ({Weaker is} 25. Rxd5 Rg8 $16) 25... Qd6 {[%emt 0:00:15]} 26. Qb4 {[%emt 0:00:57]} Qd7 {[%emt 0:00:32]} 27. Qe4 {[%emt 0:00:25]} Rg8 {[%emt 0:01:10]} 28. Rg1 $40 {[%emt 0:01:09][%mdl 128] White goes for the king.} Qb5+ $2 {[%emt 0:01:52]} (28... Rxg1 29. Rxg1 Rg8 30. Rxg8+ Kxg8) 29. c4 {[%emt 0:02:06]} Qc5 {[%emt 0:00:18]} 30. Qe3 {[%emt 0:06:46]} Qd6 {[%emt 0:00:20]} 31. Kd3 {[%emt 0:04:18]} e4+ {[%emt 0:01:57]} (31... a5 $142 32. Rxg8+ Kxg8 33. Qg3+ Kf8) 32. Qxe4 {[%emt 0:01:35] White is clearly winning.} (32. Kxe4 $2 {perishes.} Rae8+ 33. Kd4 Qb6+ (33... Rxe3 $2 34. Rxg8+ Kxg8 35. Kxe3 $19) 34. c5 Qb4+ 35. c4 Rxe3 36. Rxg8+ Kxg8 $19) 32... Rge8 {[%emt 0:02:10]} 33. Qg4 {[%emt 0:00:53]} Rg8 {[%emt 0:00:22] Wards off Qg7+} 34. Qd4 {[%emt 0:00:21] Weighted Error Value: White=0.03 (flawless) /Black=0.42.  Mistake:       	---       	Black=5      Inaccurate:     	---       	Black=2      OK:         	White=15    	Black=10     Best:        	White=1     	Black=2      Strong:       	White=2     	---} 1-0

[Event "125-Jahre Werder Bremen 2024"]
[Site "Bremen"]
[Date "2024.03.08"]
[Round "7.2"]
[White "Teclaf, Pawel"]
[Black "Kopylov, Daniel"]
[Result "1-0"]
[ECO "A34"]
[WhiteElo "2556"]
[BlackElo "2346"]
[Annotator "TA"]
[PlyCount "55"]
[EventDate "2024.02.26"]
[EventType "swiss"]
[EventCountry "GER"]
[SourceTitle "playchess.com"]
[Source "ChessBase"]
[SourceQuality "1"]
[TimeControl "40/6000+30:1800+30"]

{[%evp 9,55,10,25,13,15,16,21,24,27,27,28,8,20,16,41,38,43,33,51,37,82,77,126,115,137,110,125,137,139,132,166,176,167,162,185,182,271,264,482,358,396,392,389,383,495,409,503,491]} 1. c4 {[%emt 0:00:32]} c5 {[%emt 0:00:34]} 2. Nf3 {[%emt 0:00:36]} Nf6 {[%emt 0:00:30]} 3. Nc3 {[%emt 0:00:30]} d5 {[%emt 0:00:30]} 4. cxd5 {[%emt 0:00:30]} Nxd5 {[%emt 0:00:30]} 5. e3 {[%emt 0:00:30]} Nxc3 {[%emt 0:00:50]} 6. dxc3 {[%emt 0:02:45]} Qc7 {[%emt 0:00:30]} 7. e4 {[%emt 0:00:30]} Nc6 {[%emt 0:01:54]} 8. Be3 {[%emt 0:00:30] The position is equal.} e6 {[%emt 0:03:23]} 9. Nd2 {[%emt 0:02:38]} Be7 {[%emt 0:01:31]} 10. Qg4 {[%emt 0:00:30][%cal Oe3f4] Strongly threatening Bf4!} O-O {[%emt 0:06:39]} 11. Qg3 $36 {[%emt 0:00:30][%mdl 2048] White has some pressure.} Qxg3 {[%emt 0:06:55]} 12. hxg3 {[%emt 0:01:50][%cal Bh2g3,Bg3g4,Bg4g5][%mdl 32]} b6 {[%emt 0:00:45]} 13. f4 {[%emt 0:01:31]} Bb7 {[%emt 0:08:17]} 14. g4 {[%emt 0:00:30]} Rfd8 {[%emt 0:11:13]} 15. g5 {[%emt 0:01:21]} Rd7 {[%emt 0:07:21]} (15... Rac8 $142) 16. O-O-O $16 {[%emt 0:09:52]} Rad8 {[%emt 0:05:34]} 17. Be2 {[%emt 0:01:26][%cal Bf1e2,Be2f3,Bf3d1,Bd1b3,Bb3c2,Bc2h7][%mdl 32]} Bf8 {[%emt 0:13:36]} 18. Rh3 {[%emt 0:03:49]} Ne7 {[%emt 0:01:26]} 19. Rdh1 {[%emt 0:02:18]} Rxd2 {[%emt 0:07:17]} 20. Bxd2 {[%emt 0:01:58]} (20. Rxh7 $6 Rc2+ (20... Rxe2 21. Rh8#) 21. Kb1 Ng6 22. Kxc2 Bxe4+ 23. Kc1 Bxg2 $14) 20... Bxe4 {[%emt 0:00:30]} 21. Bf3 {[%emt 0:00:30]} Bd3 {[%emt 0:01:46]} 22. Bd1 {[%emt 0:02:04]} e5 {[%emt 0:04:32]} (22... Be4 $142) 23. fxe5 {[%emt 0:02:19][%cal Oh3d3,Bf4e5,Be5e6][%mdl 32] And now Rxd3! would win.} Rd5 {[%emt 0:01:54]} (23... Ng6 {was worth a try.} 24. Rxh7 Re8) 24. Bb3 {[%emt 0:04:44]} c4 {[%emt 0:02:19] [#]} 25. Rxd3 $1 {[%emt 0:00:30][%mdl 512]} Rxd3 {[%emt 0:01:54]} 26. Bc2 {[%emt 0:00:30]} ({But not} 26. Bxc4 Rd7 27. e6 Rxd2) 26... Rd8 {[%emt 0:00:30]} 27. Bxh7+ {[%emt 0:00:30]} Kh8 {[%emt 0:00:30] [#]} 28. e6 $1 {[%emt 0:03:05][%mdl 512] Weighted Error Value: White=0.13 (very precise) /Black=0.37.  Mistake:       	---       	Black=3      Inaccurate:     	---       	Black=1      OK:         	White=11    	Black=5      Best:        	---       	Black=1      Brilliant:      	White=1     	---} 1-0

[Event "125-Jahre Werder Bremen 2024"]
[Site "Bremen"]
[Date "2024.03.08"]
[Round "7.3"]
[White "Plat, Vojtech"]
[Black "Gumularz, Szymon"]
[Result "1/2-1/2"]
[ECO "B50"]
[WhiteElo "2528"]
[BlackElo "2590"]
[Annotator "TA"]
[PlyCount "36"]
[EventDate "2024.02.26"]
[EventType "swiss"]
[EventCountry "GER"]
[SourceTitle "playchess.com"]
[Source "ChessBase"]
[SourceQuality "1"]
[TimeControl "40/6000+30:1800+30"]

{[%evp 9,36,4,10,10,5,14,10,4,0,0,20,0,19,0,0,-13,-11,-27,0,-2,0,-23,-8,0,0,-4,0,0,0]} 1. e4 {[%emt 0:00:07]} c5 {[%emt 0:00:05]} 2. Nf3 {[%emt 0:00:17]} d6 {[%emt 0:00:08]} 3. c3 {[%emt 0:02:13]} Nf6 {[%emt 0:00:16]} 4. Be2 {[%emt 0:00:09]} Bd7 {[%emt 0:00:53]} 5. e5 {[%emt 0:00:25]} dxe5 {[%emt 0:01:01]} 6. Nxe5 {[%emt 0:00:05] White wants to play Qb3.} Nc6 {[%emt 0:00:25]} 7. Nxd7 {[%emt 0:00:26]} Qxd7 {[%emt 0:00:08]} 8. O-O {[%emt 0:00:23]} e6 {[%emt 0:02:29]} 9. d3 {[%emt 0:00:36]} Be7 {[%emt 0:00:14]} 10. Nd2 {[%emt 0:00:19][%cal Bb1d2,Bd2e4,Be4g5][%mdl 32]} O-O {[%emt 0:00:15]} 11. Ne4 {[%emt 0:01:11]} Nd5 {[%emt 0:00:10]} 12. Re1 {[%emt 0:03:07]} Rfd8 {[%emt 0:00:22]} 13. Bf1 {[%emt 0:00:24]} Qc7 {[%emt 0:00:22]} 14. Qf3 {[%emt 0:00:28]} Rd7 {[%emt 0:02:07]} 15. Ng5 {[%emt 0:08:20]} Nf6 {[%emt 0:01:04]} 16. Ne4 {[%emt 0:00:42] The position is equal.} Nd5 {[%emt 0:00:09]} 17. Ng5 $1 {[%emt 0:00:05]} Nf6 {[%emt 0:07:47]} 18. Ne4 {[%emt 1:30:13]} Na5 {An uneventful encounter.   Weighted Error Value: White=0.07 (flawless) /Black=0.07 (flawless) .  Inaccurate:     	---       	Black=1      OK:         	White=3     	Black=3      Strong:       	White=1     	---} 1/2-1/2

[Event "125-Jahre Werder Bremen 2024"]
[Site "Bremen"]
[Date "2024.03.08"]
[Round "7.4"]
[White "Gloeckler, Christian"]
[Black "Cheng, Bobby"]
[Result "0-1"]
[ECO "B51"]
[WhiteElo "2356"]
[BlackElo "2584"]
[Annotator "TA"]
[PlyCount "70"]
[EventDate "2024.02.26"]
[EventType "swiss"]
[EventCountry "GER"]
[SourceTitle "playchess.com"]
[Source "ChessBase"]
[SourceQuality "1"]
[TimeControl "40/6000+30:1800+30"]

{[%evp 9,70,7,15,9,15,0,0,0,-5,-29,-3,-15,-5,-15,0,0,-3,-15,0,0,0,0,0,0,0,0,0,-82,-73,-120,-107,-108,-97,-126,-114,-197,-200,-202,-198,-203,-181,-205,-182,-200,-207,-236,-216,-241,-193,-192,-189,-189,-168,-173,-181,-241,-230,-388,-366,-375,-333,-2047,-1958]} 1. e4 {[%emt 0:00:01]} c5 {[%emt 0:00:04]} 2. Nf3 {[%emt 0:00:10]} d6 {[%emt 0:00:09]} 3. Bb5+ {[%emt 0:00:07]} Nd7 {[%emt 0:00:05]} 4. Ba4 {[%emt 0:00:24]} Ngf6 {[%emt 0:00:43]} 5. O-O {[%emt 0:00:09]} e6 {[%emt 0:00:32]} 6. Re1 {[%emt 0:00:11]} Be7 {[%emt 0:01:30]} 7. c4 {[%emt 0:00:43]} O-O {[%emt 0:01:52]} 8. Bc2 {[%emt 0:02:19] The position is equal.} Ne5 {[%emt 0:02:32]} 9. d3 {[%emt 0:04:01]} b6 {[%emt 0:03:15]} 10. Nbd2 {[%emt 0:15:02]} Nc6 {[%emt 0:08:16]} 11. Nf1 {[%emt 0:03:25]} d5 {[%emt 0:06:04]} 12. e5 {[%emt 0:12:40]} Ne8 {[%emt 0:01:33]} 13. Ng3 {[%emt 0:05:53]} Nc7 {[%emt 0:04:34]} 14. Qe2 {[%emt 0:12:34]} Ba6 {[%emt 0:08:53]} 15. Bd2 {[%emt 0:03:19]} b5 {[%emt 0:05:01]} 16. b3 {[%emt 0:03:55]} Bb7 {[%emt 0:06:18]} 17. Rad1 {[%emt 0:02:46]} a5 {[%emt 0:01:53]} 18. cxd5 {[%emt 0:06:51]} (18. d4 $11 {remains equal.}) 18... Qxd5 $17 {[%emt 0:05:08] [#] ...Nd4 would now be deadly. Black continues to play with concentration.} 19. Ne4 {[%emt 0:07:57]} ({Better is} 19. Qe4) 19... Nxe5 {[%emt 0:08:57]} 20. Nxe5 {[%emt 0:05:25]} Qxe5 {[%emt 0:01:10]} 21. Bc3 {[%emt 0:06:03] [#]} Qd5 {[%emt 0:05:02] ...f5 is the strong threat.} 22. f3 {[%emt 0:06:34]} (22. Qg4 $17 Ne8 23. d4) 22... b4 $19 {[%emt 0:06:02]} 23. Bb2 {[%emt 0:02:49]} Nb5 {[%emt 0:00:22][%cal Bc7b5,Bb5d4,Bd4f5,Bf5d4,Bd4e2][%mdl 32]} 24. Qf2 {[%emt 0:01:57]} Rfc8 {[%emt 0:06:12]} 25. Bb1 {[%emt 0:01:41]} Rd8 {[%emt 0:06:21]} 26. Qg3 {[%emt 0:00:54][%csl Gb2][%cal Rg3g7]} Nd4 {[%emt 0:02:19]} 27. Nd2 {[%emt 0:01:10]} Bf6 {[%emt 0:02:33] aiming for ...Nf5.} 28. Nc4 {[%emt 0:01:21]} Nf5 {[%emt 0:00:26]} 29. Qf2 {[%emt 0:01:18]} Bh4 {[%emt 0:05:36]} 30. g3 {[%emt 0:00:55]} Bf6 $36 {[%emt 0:00:02][%mdl 2048] White is under strong pressure.} 31. Bxf6 {[%emt 0:00:58]} gxf6 {[%emt 0:00:02]} 32. Re4 {[%emt 0:00:57]} (32. Nb6 $142 Qxf3 33. Qxf3 Bxf3 34. Nxa8 Bxd1 (34... Bxa8 $2 35. Rc1 $17) 35. Nb6) 32... Nd4 {[%emt 0:02:48]} 33. Qe3 $2 {[%emt 0:01:17]} (33. Rf1) 33... Qh5 {[%emt 0:02:03]} 34. Rg4+ {[%emt 0:00:55]} Kh8 {[%emt 0:04:13]} 35. Qf4 {[%emt 0:00:21]} (35. Rf1) 35... Ne2+ {[%emt 0:00:46] Weighted Error Value: White=0.39/Black=0.11 (very precise) .  Mistake:       	White=6     	---        Inaccurate:     	---       	Black=1      OK:         	White=6     	Black=12     Best:        	White=1     	Black=2} 0-1

[Event "125-Jahre Werder Bremen 2024"]
[Site "Bremen"]
[Date "2024.03.08"]
[Round "7.5"]
[White "Wachinger, Nikolas"]
[Black "Efimenko, Zahar"]
[Result "0-1"]
[ECO "C96"]
[WhiteElo "2442"]
[BlackElo "2568"]
[Annotator "RC"]
[PlyCount "142"]
[EventDate "2024.02.26"]
[EventType "swiss"]
[EventCountry "GER"]
[SourceTitle "playchess.com"]
[Source "ChessBase"]
[SourceQuality "1"]
[TimeControl "40/6000+30:1800+30"]

1. e4 {[%emt 0:00:03]} e5 {[%emt 0:00:55]} 2. Nf3 {[%emt 0:00:08]} Nc6 {[%emt 0:00:07]} 3. Bb5 {[%emt 0:00:07]} a6 {[%emt 0:00:06]} 4. Ba4 {[%emt 0:00:12]} Nf6 {[%emt 0:00:07]} 5. O-O {[%emt 0:00:08]} Be7 {[%emt 0:00:09]} 6. Re1 {[%emt 0:00:10]} b5 {[%emt 0:00:22]} 7. Bb3 {[%emt 0:00:07]} d6 {[%emt 0:00:18]} 8. c3 {[%emt 0:00:12]} O-O {[%emt 0:00:10]} 9. h3 {[%emt 0:00:07]} Na5 {[%emt 0:00:27]} 10. Bc2 {[%emt 0:00:12]} c5 {[%emt 0:00:15]} 11. d4 {[%emt 0:00:06]} Nd7 {[%emt 0:00:24]} 12. a4 {[%emt 0:01:31]} Bb7 {[%emt 0:03:29]} 13. d5 {[%emt 0:12:47]} Qc7 {[%emt 0:00:48]} 14. b3 {[%emt 0:07:10]} c4 {[%emt 0:04:53]} 15. b4 {[%emt 0:09:30]} Nb3 {[%emt 0:01:21]} 16. Bxb3 {[%emt 0:00:08]} cxb3 {[%emt 0:00:02]} 17. Qxb3 {[%emt 0:00:33]} f5 {[%emt 0:07:54]} 18. axb5 {[%emt 0:35:09]} fxe4 {[%emt 0:07:44]} 19. Ng5 {[%emt 0:02:21]} Bxg5 {[%emt 0:07:47]} 20. Bxg5 {[%emt 0:00:05]} axb5 {[%emt 0:00:28]} 21. Rxa8 {[%emt 0:04:52]} Bxa8 {[%emt 0:04:26]} 22. Na3 {[%emt 0:00:52]} Qb6 {[%emt 0:16:22]} 23. Be3 {[%emt 0:01:51]} Qa6 {[%emt 0:02:46]} 24. c4 {[%emt 0:12:48]} bxc4 {[%emt 0:05:18]} 25. Nxc4 {[%emt 0:00:20]} Rb8 {[%emt 0:05:20]} 26. Rd1 {[%emt 0:04:41]} h6 {[%emt 0:15:46]} 27. Na3 {[%emt 0:05:51]} Nf6 {[%emt 0:03:14]} 28. b5 {[%emt 0:00:04]} Qa5 {[%emt 0:00:03]} 29. b6 {[%emt 0:07:40]} Bxd5 {[%emt 0:02:39]} 30. Qb2 {[%emt 0:00:54]} Kh7 {[%emt 0:08:21]} 31. Nb5 {[%emt 0:01:19]} Rxb6 {[%emt 0:01:40]} 32. Bxb6 {[%emt 0:00:03]} Qxb6 {[%emt 0:00:03]} 33. Qb1 {[%emt 0:00:05]} Kg8 {[%emt 0:06:03]} 34. Nc3 {[%emt 0:02:05]} Qxb1 {[%emt 0:00:52]} 35. Rxb1 {[%emt 0:00:45]} Bc4 {[%emt 0:02:59]} 36. Rb7 {[%emt 0:00:58]} Kf8 {[%emt 0:01:33]} 37. Rc7 {[%emt 0:01:15]} d5 {[%emt 0:01:45]} 38. g4 {[%emt 0:00:27]} g5 {[%emt 0:00:29]} 39. Kg2 {[%emt 0:00:13]} Ke8 {[%emt 0:00:42]} 40. Kg3 {[%emt 0:00:35]} Bd3 {[%emt 0:01:38]} 41. Rc6 {[%emt 0:14:11]} d4 {[%emt 0:05:33]} 42. Na4 {[%emt 0:07:05]} Ke7 {[%emt 0:02:04]} 43. Nb6 {[%emt 0:05:15]} Ba6 {[%emt 0:06:51]} 44. h4 {[%emt 0:02:14]} d3 {[%emt 0:04:28]} 45. Rc1 {[%emt 0:00:28]} d2 {[%emt 0:10:05]} 46. Rd1 {[%emt 0:00:02]} e3 {[%emt 0:00:06]} 47. fxe3 {[%emt 0:00:02]} Be2 {[%emt 0:00:20]} 48. Nd5+ {[%emt 0:00:06]} Nxd5 {[%emt 0:00:56]} 49. Rxd2 {[%emt 0:00:02]} Nc3 {[%emt 0:01:02]} 50. Rc2 {[%emt 0:01:02]} Ne4+ {[%emt 0:00:11]} 51. Kh3 {[%emt 0:00:03]} Bf1+ {[%emt 0:00:22]} 52. Kh2 {[%emt 0:00:27]} gxh4 {[%emt 0:01:49]} 53. Rc1 {[%emt 0:02:56]} Nd2 {[%emt 0:00:19]} 54. Kg1 {[%emt 0:01:06]} Bh3 {[%emt 0:00:35]} 55. Rc6 {[%emt 0:00:30]} Bxg4 {[%emt 0:00:55]} 56. Rxh6 {[%emt 0:00:02]} Nf3+ {[%emt 0:00:30]} 57. Kf2 {[%emt 0:00:23]} e4 {[%emt 0:01:14]} 58. Ra6 {[%emt 0:01:24]} Kf7 {[%emt 0:00:19]} 59. Rb6 {[%emt 0:00:57]} Be6 {[%emt 0:01:03]} 60. Rb4 {[%emt 0:00:21]} Ng5 {[%emt 0:00:22]} 61. Rb8 {[%emt 0:00:22]} Kg6 {[%emt 0:00:18]} 62. Rh8 {[%emt 0:00:22]} Nf3 {[%emt 0:00:10]} 63. Re8 {[%emt 0:00:15]} Kf6 {[%emt 0:00:30]} 64. Rh8 {[%emt 0:00:20]} Kg5 {[%emt 0:00:34]} 65. Re8 {[%emt 0:00:03]} Bf5 {[%emt 0:00:03]} 66. Rg8+ {[%emt 0:00:50]} Bg6 {[%emt 0:00:04]} 67. Rf8 {[%emt 0:01:17]} Ne5 {[%emt 0:00:09]} 68. Rh8 {[%emt 0:00:52]} Ng4+ {[%emt 0:00:04]} 69. Ke2 {[%emt 0:00:03]} Bf7 {[%emt 0:00:21]} 70. Kd2 {[%emt 0:00:37]} Nh6 {[%emt 0:00:39]} 71. Ke1 {[%emt 0:00:53]} Bg8 {[%emt 0:00:29]} 0-1